bitfinex-derivatives/quotes_ETHF0:USTF0_20210110
["timestamp","ask_amount","ask_price","bid_price","bid_amount"]
[1610280444197,1.6172,1245.8,1244.7,4.00959]
[1610280444398,1.6172,1245.8,1244.7,5.84339]
[1610280445598,1.6172,1245.8,1244.7,4.00959]
[1610280446199,1.6172,1245.8,1245.3,4.00959]
[1610280447800,1.6172,1245.8,1244.6,1.8282]
[1610280448202,1.6172,1245.8,1245.7,4.00959]
[1610280448402,4.00959,1246.1,1245.7,4.00959]
[1610280448804,6.1168,1247.0,1245.7,4.00959]
[1610280450202,6.1168,1247.0,1246.7,4.00959]
[1610280452202,4.00959,1247.5,1246.9,4.00959]
[1610280452403,0.02005191,1248.5,1246.9,4.00959]
[1610280452603,0.02005191,1248.5,1245.7,1.9328]
[1610280453004,2.31865191,1248.5,1244.9,1.5355]
[1610280453604,0.02001756,1248.4,1244.7,62.584]
[1610280453805,0.05999797,1248.3,1244.7,62.584]
[1610280454205,4.00959,1245.6,1245.4,4.00959]
[1610280454405,5.57899,1245.6,1244.7,62.584]
[1610280455406,5.57899,1245.6,1242.4,1.7166]
[1610280455607,1.5694,1245.6,1242.4,1.7166]
[1610280455807,1.5694,1245.6,1241.5,3.0]
[1610280456007,1.5694,1245.6,1241.7,3.0]
[1610280456208,1.5694,1245.6,1245.5,4.00959]
[1610280456407,1.5694,1245.6,1243.2,1.5675]
[1610280457807,1.6114,1246.1,1243.2,1.5675]
[1610280458208,1.6114,1246.1,1246.0,4.00959]
[1610280459610,6.1341,1247.6,1246.0,4.00959]
[1610280459812,6.1341,1247.6,1243.2,1.5675]
[1610280459813,6.1341,1247.6,1245.8,1.6928]
[1610280460009,8.4697,1247.6,1245.8,1.6928]
[1610280460211,8.4697,1247.6,1247.0,4.00959]
[1610280462114,2.3356,1247.6,1247.5,4.00959]
[1610280463720,2.2986,1248.5,1247.5,4.00959]
[1610280463915,0.02019158,1249.8,1247.5,4.00959]
[1610280464116,0.02019446,1249.9,1248.3,4.00959]
[1610280464516,6.03928174,1250.0,1248.3,4.00959]
[1610280464916,5.9787,1250.0,1248.3,4.00959]
[1610280465117,5.9787,1250.0,1248.3,6.30709]
[1610280466117,4.00959,1249.9,1249.5,4.00959]
[1610280466317,6.51339,1249.9,1249.5,4.00959]
[1610280466518,6.51339,1249.9,1248.3,2.2975]
[1610280467317,4.00959,1249.9,1248.3,2.2975]
[1610280468121,0.02029954,1250.7,1249.3,4.00959]
[1610280468122,4.00959,1249.5,1249.3,4.00959]
[1610280468318,1.9731,1250.7,1249.3,4.00959]
[1610280468717,1.9731,1250.7,1249.3,6.41219]
[1610280469119,0.02030957,1250.9,1249.3,6.41219]
[1610280469319,0.06090401,1251.0,1249.3,6.41219]
[1610280469721,0.06090897,1251.3,1249.3,6.41219]
[1610280470121,4.00959,1250.2,1249.5,4.00959]
[1610280470321,4.00959,1250.2,1249.3,2.4026]
[1610280471321,4.00959,1250.2,1247.6,54.825]
[1610280471722,5.87369,1250.2,1248.1,50.4628]
[1610280471922,5.87369,1250.2,1248.1,52.2119]
[1610280472322,1.8641,1250.2,1248.7,4.00959]
[1610280472522,1.647,1250.6,1248.7,5.72349]
[1610280473122,0.06075434,1250.8,1248.7,5.72349]
[1610280473526,0.02029331,1251.0,1248.7,5.72349]
[1610280473723,1.58050941,1251.1,1248.7,5.72349]
[1610280474124,1.5602,1251.1,1248.7,5.72349]
[1610280474323,4.00959,1250.4,1249.8,4.00959]
[1610280474524,0.06106953,1251.4,1249.8,4.00959]
[1610280474725,0.02035255,1251.3,1249.8,5.57199]
[1610280475123,0.02036406,1251.4,1249.8,5.57199]
[1610280475324,2.1614752,1251.5,1249.8,5.57199]
[1610280475524,0.0203752,1251.5,1249.8,5.57199]
[1610280475723,0.02037489,1251.6,1249.8,5.57199]
[1610280476123,0.02037495,1251.7,1249.8,5.57199]
[1610280476324,0.02037352,1251.8,1250.4,4.00959]
[1610280476524,0.02037352,1251.8,1250.4,6.45299]
[1610280477125,0.0204039,1252.0,1250.4,6.45299]
[1610280477327,5.81253899,1252.2,1250.4,6.45299]
[1610280477328,5.66978301,1252.2,1250.4,6.45299]
[1610280477725,0.02043286,1252.1,1250.4,6.45299]
[1610280477928,2.14763286,1252.1,1250.4,6.45299]
[1610280478327,2.1272,1252.1,1251.7,4.00959]
[1610280480327,2.1272,1252.1,1252.0,4.00959]
[1610280481330,0.02059413,1254.0,1252.0,5.77359]
[1610280481729,0.12356481,1254.1,1252.0,5.77359]
[1610280481730,0.06182538,1254.2,1252.0,5.77359]
[1610280482131,0.02060429,1254.1,1252.0,5.77359]
[1610280482331,4.00959,1253.4,1253.0,4.00959]
[1610280482532,1.7009,1253.4,1253.0,4.00959]
[1610280483732,1.7009,1253.4,1243.6,14.56265108]
[1610280484232,1.7009,1253.4,1253.3,4.00959]
[1610280485233,1.7941,1254.1,1253.3,4.00959]
[1610280486233,1.7941,1254.1,1253.2,1.7501]
[1610280486234,1.7941,1254.1,1254.0,4.00959]
[1610280487236,0.06243544,1255.9,1254.0,4.00959]
[1610280487437,0.02080783,1255.8,1254.0,4.00959]
[1610280487636,1.84490783,1255.8,1254.0,4.00959]
[1610280487836,0.02081982,1255.7,1254.0,4.00959]
[1610280488236,4.00959,1255.2,1254.7,4.00959]
[1610280488634,5.67409,1255.2,1254.7,4.00959]
[1610280488836,5.67409,1255.2,1253.2,1.7501]
[1610280489035,5.67409,1255.2,1252.5,1.6672]
[1610280489236,5.67409,1255.2,1252.2,1.7839]
[1610280489436,5.69492775,1255.2,1252.2,1.7839]
[1610280489636,0.0624624,1255.1,1252.2,1.7839]
[1610280489836,0.02083024,1255.0,1240.0,11.72510695]
[1610280490237,4.00959,1253.6,1253.4,4.00959]
[1610280490437,5.88879,1253.6,1243.4,14.56265108]
[1610280491436,5.88879,1253.6,1241.2,14.56265108]
[1610280492236,4.00959,1252.3,1251.6,4.00959]
[1610280492436,5.67339,1252.3,1251.6,4.00959]
[1610280492636,5.67339,1252.3,1241.1,14.56265108]
[1610280494243,4.00959,1250.9,1250.1,4.00959]
[1610280494838,2.0491,1251.6,1250.1,4.00959]
[1610280495039,2.0491,1251.6,1250.1,6.04309]
[1610280495840,2.0491,1251.6,1250.1,1.5841]
[1610280497441,2.0491,1251.6,1249.6,1.6832]
[1610280497641,2.0491,1251.6,1240.1,5.7697]
[1610280497642,2.0491,1251.6,1248.5,2.5078]
[1610280498241,2.0491,1251.6,1248.6,4.00959]
[1610280498441,2.06958337,1251.6,1248.6,4.00959]
[1610280498642,2.11055906,1251.6,1248.5,2.5078]
[1610280498841,8.14185906,1251.6,1248.5,2.5078]
[1610280499043,0.02044806,1251.2,1248.5,2.5078]
[1610280499240,1.88882354,1251.2,1248.5,2.5078]
[1610280499642,2.1270865,1250.8,1248.5,2.5078]
[1610280499841,30.0,1250.7,1248.5,2.5078]
[1610280500041,0.02034655,1250.5,1240.1,5.7697]
[1610280500241,4.00959,1247.2,1246.8,4.00959]
[1610280500643,4.00959,1247.2,1237.7,5.9555]
[1610280501242,4.00959,1247.2,1237.8,10.88712662]
[1610280501644,4.00959,1247.2,1237.8,13.14942662]
[1610280502050,4.00959,1247.2,1237.9,5.8549]
[1610280502248,4.00959,1246.0,1245.9,4.00959]
[1610280502448,2.4323,1248.0,1245.9,4.00959]
[1610280502849,2.4323,1248.0,1245.9,6.49449]
[1610280503848,2.4323,1248.0,1245.9,4.00959]
[1610280504247,2.4323,1248.0,1247.6,4.00959]
[1610280504449,2.4323,1248.0,1244.6,1.6735]
[1610280505552,2.4323,1248.0,1244.3,2.4124]
[1610280505951,2.4323,1248.0,1238.1,21.10312662]
[1610280506351,2.4323,1248.0,1247.9,4.00959]
[1610280506552,2.4323,1248.0,1243.9,2.1989]
[1610280507652,2.4544,1248.0,1243.9,2.1989]
[1610280507853,2.4544,1248.0,1238.1,3.36741216]
[1610280508053,2.4544,1248.0,1238.0,5.9369]
[1610280508255,2.4544,1248.0,1247.9,4.00959]
[1610280509056,6.0417,1249.8,1247.9,5.89009]
[1610280509255,1.569,1250.5,1247.9,5.89009]
[1610280509456,2.1067,1250.8,1247.9,5.89009]
[1610280509656,0.02050343,1250.9,1247.9,5.89009]
[1610280509857,30.0,1251.0,1247.9,5.89009]
[1610280510057,30.0,1251.0,1247.9,1.8805]
[1610280510258,4.00959,1248.0,1247.9,1.8805]
[1610280510458,1.577,1248.0,1246.5,1.5179]
[1610280511658,1.577,1248.0,1238.1,30.0]
[1610280512259,4.00959,1247.4,1246.8,4.00959]
[1610280512460,1.577,1248.0,1246.8,4.00959]
[1610280513259,1.577,1248.0,1246.8,5.94079]
[1610280514261,1.577,1248.0,1247.4,4.00959]
[1610280514461,1.577,1248.0,1246.8,1.9312]
[1610280514660,1.577,1248.0,1246.3,1.8524]
[1610280514661,1.577,1248.0,1245.6,2.4671]
[1610280515661,0.02051597,1250.1,1245.6,2.4671]
[1610280515863,2.1945,1248.0,1245.6,2.4671]
[1610280516461,6.09369,1247.5,1247.3,4.00959]
[1610280516663,6.09369,1247.5,1245.6,2.4671]
[1610280517262,6.09369,1247.5,1238.1,30.0]
[1610280517662,6.09369,1247.5,1237.9,30.0]
[1610280518065,2.0841,1247.5,1237.9,30.0]
[1610280518265,2.0841,1247.5,1247.4,4.00959]
[1610280518667,2.0841,1247.5,1245.7,2.1479]
[1610280519667,2.0841,1247.5,1238.1,10.06538554]
[1610280520068,2.1945,1248.0,1238.1,10.06538554]
[1610280520267,2.1945,1248.0,1247.9,4.00959]
[1610280520668,6.1662,1249.9,1247.9,4.00959]
[1610280521270,6.1662,1249.9,1247.9,5.61099]
[1610280522369,10.17579,1249.9,1249.2,4.00959]
[1610280522970,6.1662,1249.9,1249.2,4.00959]
[1610280523171,6.1662,1249.9,1248.6,2.2377]
[1610280523370,38.3529,1249.9,1248.6,2.2377]
[1610280523569,38.3529,1249.9,1247.5,54.646]
[1610280523771,8.3529,1249.9,1247.5,54.646]
[1610280524371,4.00959,1247.6,1247.5,54.646]
[1610280524773,6.02429,1247.6,1247.5,54.646]
[1610280525974,2.0147,1247.6,1247.5,54.646]
[1610280526376,2.0147,1247.6,1247.5,4.00959]
[1610280527575,4.00959,1248.9,1247.5,4.00959]
[1610280527775,4.00959,1248.9,1247.5,5.56639]
[1610280528376,4.00959,1248.9,1248.2,4.00959]
[1610280528679,4.00959,1248.9,1247.5,1.5568]
[1610280528880,6.26559,1248.9,1247.5,1.5568]
[1610280529079,6.26559,1248.9,1247.0,1.9655]
[1610280529684,6.26559,1248.9,1246.7,1.9771]
[1610280530283,4.00959,1247.7,1247.4,4.00959]
[1610280530490,1.5285,1247.7,1247.4,4.00959]
[1610280531488,1.9948,1249.3,1247.4,4.00959]
[1610280531684,1.9948,1249.3,1238.4,19.80215646]
[1610280531887,1.9948,1249.3,1247.4,2.4318]
[1610280532486,4.00959,1248.6,1247.9,4.00959]
[1610280532685,1.9948,1249.3,1247.9,4.00959]
[1610280532886,1.7806,1248.8,1247.9,4.00959]
[1610280533989,1.7806,1248.8,1247.8,2.144]
[1610280534188,1.7806,1248.8,1247.4,2.4318]
[1610280534389,1.7806,1248.8,1247.5,4.00959]
[1610280535391,1.7806,1248.8,1244.6,1.8304]
[1610280536390,4.00959,1248.7,1248.1,4.00959]
[1610280536591,1.7806,1248.8,1248.1,4.00959]
[1610280537390,1.9948,1249.3,1248.1,4.00959]
[1610280537590,2.1867,1249.9,1248.1,4.00959]
[1610280537789,5.7075,1250.8,1248.1,4.00959]
[1610280538492,5.7075,1250.8,1249.8,4.00959]
[1610280538891,0.02078688,1251.6,1249.8,4.00959]
[1610280539093,3.405,1251.7,1249.8,4.00959]
[1610280539491,0.08322262,1251.9,1249.8,4.00959]
[1610280539492,0.02082974,1251.9,1249.8,4.00959]
[1610280539692,0.02084813,1252.0,1249.8,4.00959]
[1610280540091,0.06252917,1252.1,1249.8,4.00959]
[1610280540391,4.00959,1250.0,1249.6,4.00959]
[1610280540994,2.0949,1250.0,1249.6,4.00959]
[1610280542395,4.00959,1250.0,1249.6,4.00959]
[1610280542695,2.3337,1250.3,1249.6,4.00959]
[1610280543595,3.42578803,1251.9,1249.6,5.62159]
[1610280543798,3.405,1251.9,1248.9,1.858]
[1610280543996,5.4304,1251.9,1248.4,51.8562]
[1610280544398,4.00959,1251.8,1251.0,4.00959]
[1610280545497,2.0254,1251.9,1251.0,4.00959]
[1610280546300,2.0254,1251.9,1251.0,5.69359]
[1610280546500,2.0254,1251.9,1251.8,4.00959]
[1610280547300,56.5902,1252.1,1251.8,4.00959]
[1610280548001,56.5902,1252.1,1251.8,5.85659]
[1610280548402,56.5902,1252.1,1252.0,4.00959]
[1610280548804,5.8929,1253.3,1252.0,4.00959]
[1610280549105,4.00959,1253.4,1252.0,4.00959]
[1610280550509,4.00959,1253.2,1252.5,4.00959]
[1610280550709,6.38059,1253.2,1252.5,4.00959]
[1610280551109,2.371,1253.2,1252.5,4.00959]
[1610280554409,2.371,1253.2,1253.1,4.00959]
[1610280555810,6.1983,1254.6,1252.2,1.917]
[1610280556011,1.9364,1253.3,1252.2,1.917]
[1610280556413,1.9364,1253.3,1253.2,4.00959]
[1610280557215,5.8462,1255.1,1253.2,4.00959]
[1610280557814,0.06329306,1255.5,1253.2,4.00959]
[1610280558014,0.02112667,1255.4,1253.2,4.00959]
[1610280558214,2.12562667,1255.4,1253.2,4.00959]
[1610280558414,2.1045,1255.4,1253.2,4.00959]
[1610280558614,4.00959,1255.1,1254.7,4.00959]
[1610280558814,5.79829,1255.1,1254.7,4.00959]
[1610280559014,1.7887,1255.1,1254.7,4.00959]
[1610280560516,1.7887,1255.1,1255.0,4.00959]
[1610280561919,0.02128777,1256.7,1255.0,4.00959]
[1610280562120,0.02128458,1256.8,1255.0,4.00959]
[1610280562322,0.06384858,1257.0,1255.0,4.00959]
[1610280562521,4.07343858,1257.0,1256.3,4.00959]
[1610280563120,0.06387247,1257.2,1256.3,4.00959]
[1610280563522,0.02129134,1257.4,1256.3,4.00959]
[1610280563722,0.06390222,1257.6,1256.3,4.00959]
[1610280564121,3.405,1257.8,1256.3,5.71239]
[1610280564521,3.405,1257.8,1257.3,4.00959]
[1610280564923,0.29868756,1258.1,1257.3,4.00959]
[1610280564924,0.06406425,1258.1,1257.3,4.00959]
[1610280565122,0.14949305,1258.1,1257.3,4.00959]
[1610280565922,0.14979648,1258.3,1257.3,4.00959]
[1610280566522,4.00959,1258.2,1257.8,4.00959]
[1610280566723,4.00959,1258.2,1256.6,2.4144]
[1610280566724,0.0642287,1258.4,1256.3,1.7028]
[1610280566923,0.14989788,1258.5,1256.3,1.7028]
[1610280567124,1.5432,1258.4,1256.3,1.7028]
[1610280567725,1.5432,1258.4,1251.3,4.39984703]
[1610280567925,1.5432,1258.4,1253.3,0.2808]
[1610280568125,1.5432,1258.4,1251.3,4.39984703]
[1610280568326,1.5432,1258.4,1254.0,62.7198]
[1610280568524,1.5432,1258.4,1258.3,4.00959]
[1610280568725,1.5432,1258.4,1256.6,1.9898]
[1610280570624,1.5432,1258.4,1258.3,4.00959]
[1610280570926,1.5432,1258.4,1257.1,1.8922]
[1610280572127,2.0761,1258.4,1257.1,1.8922]
[1610280574630,1.7399,1258.7,1258.3,4.00959]
[1610280575431,0.36602933,1260.2,1258.3,4.00959]
[1610280575634,6.54500114,1260.4,1258.3,4.00959]
[1610280575932,0.30165976,1260.4,1258.3,4.00959]
[1610280576132,0.15081763,1260.5,1258.3,4.00959]
[1610280576332,0.15093,1260.7,1258.3,4.00959]
[1610280576532,4.00959,1260.4,1260.0,4.00959]
[1610280576733,2.0335,1260.4,1260.0,4.00959]
[1610280577732,1.6677,1260.8,1260.0,4.00959]
[1610280578334,1.6677,1260.8,1260.0,6.51819]
[1610280578534,1.6677,1260.8,1260.7,4.00959]
[1610280579235,0.36819711,1261.3,1260.7,4.00959]
[1610280579434,0.36819711,1261.3,1260.7,5.81289]
[1610280579834,0.36819711,1261.3,1260.7,1.8841]
[1610280580035,0.36852823,1261.6,1260.7,1.8841]
[1610280580436,4.20819259,1262.0,1260.7,1.8841]
[1610280580635,4.00959,1261.4,1261.2,4.00959]
[1610280580837,3.77403444,1262.0,1261.2,4.00959]
[1610280581035,2.2002,1261.6,1260.7,1.8841]
[1610280581234,2.2002,1261.6,1260.4,2.1296]
[1610280581838,0.12992877,1261.4,1260.4,2.1296]
[1610280582035,0.15158356,1261.4,1260.4,2.1296]
[1610280582237,0.15134203,1261.1,1259.5,60.6669]
[1610280582538,4.00959,1259.8,1259.5,64.67649]
[1610280582738,1.5784,1260.6,1259.5,64.67649]
[1610280582938,1.5784,1260.6,1259.5,66.24609]
[1610280584537,5.58799,1260.6,1259.8,4.00959]
[1610280584737,5.58799,1260.6,1259.8,5.57179]
[1610280584939,4.00959,1260.6,1259.8,5.57179]
[1610280585341,0.36963182,1261.6,1259.8,5.57179]
[1610280585737,1.13063852,1261.7,1259.8,5.57179]
[1610280585738,0.37023672,1261.7,1259.8,5.57179]
[1610280586339,0.37023672,1261.7,1259.8,1.5622]
[1610280586539,4.00959,1259.9,1259.8,1.5622]
[1610280588241,5.9012,1261.0,1259.8,1.5622]
[1610280588542,4.00959,1260.2,1259.8,1.5622]
[1610280589543,0.80474249,1261.2,1259.8,1.5622]
[1610280589745,0.3700993,1261.3,1259.5,1.5696]
[1610280589946,0.3700993,1261.3,1259.8,1.7182]
[1610280590146,5.6866,1261.4,1259.8,1.7182]
[1610280590747,4.00959,1259.9,1259.8,1.7182]
[1610280591751,4.00959,1259.9,1259.0,60.35]
[1610280591949,4.00959,1259.9,1256.9,4.37873428]
[1610280592150,6.05691802,1261.4,1258.4,6.6186]
[1610280592450,6.49252325,1261.4,1258.4,6.6186]
[1610280592854,0.80582961,1261.3,1258.4,6.6186]
[1610280593253,0.37016815,1261.2,1258.4,6.6186]
[1610280593453,5.6866,1261.4,1258.4,6.6186]
[1610280594656,5.6866,1261.4,1261.3,4.00959]
[1610280594857,5.6866,1261.4,1261.3,6.16609]
[1610280596457,4.2161891,1263.3,1261.3,6.16609]
[1610280596658,4.00959,1262.8,1262.4,1.62]
[1610280597457,0.80897427,1263.3,1262.4,1.62]
[1610280597857,1.50865783,1263.4,1262.0,1.6923]
[1610280598257,0.80853005,1263.3,1262.0,1.6923]
[1610280598457,0.37149717,1263.2,1262.0,1.6923]
[1610280598657,0.37149717,1263.2,1262.6,4.00959]
[1610280598858,0.37147796,1263.1,1262.6,4.00959]
[1610280599058,1.50869338,1263.3,1262.6,4.00959]
[1610280599358,0.80900949,1263.3,1262.6,5.69059]
[1610280599759,1.50939524,1263.4,1262.6,5.69059]
[1610280599959,4.91609951,1263.5,1262.6,1.681]
[1610280600459,1.51040248,1263.4,1262.6,1.681]
[1610280600660,4.00959,1263.1,1262.6,1.681]
[1610280602663,0.81009117,1263.5,1263.0,4.00959]
[1610280602862,1.510799,1263.6,1263.0,5.63359]
[1610280603064,1.51191847,1263.7,1263.0,5.63359]
[1610280603363,1.51361403,1263.8,1263.0,5.63359]
[1610280603561,1.51361403,1263.8,1263.0,1.624]
[1610280603762,0.8116481,1263.8,1262.9,2.2999]
[1610280604162,0.81170491,1263.7,1262.9,2.2999]
[1610280604362,1.51311774,1263.6,1262.9,2.2999]
[1610280604564,3.11111774,1263.6,1262.9,2.2999]
[1610280604765,3.11111774,1263.6,1255.6,6.811]
[1610280604766,4.00959,1263.0,1262.1,4.00959]
[1610280606666,4.00959,1263.0,1262.9,4.00959]
[1610280606870,4.00959,1263.0,1262.7,2.2168]
[1610280607071,1.51477125,1263.5,1262.7,2.2168]
[1610280607271,42.020324,1263.0,1262.7,2.2168]
[1610280608672,4.00959,1262.8,1261.9,4.00959]
[1610280609674,4.00959,1262.8,1259.6,3.88476844]
[1610280609875,7.41459,1262.8,1259.5,3.88477469]
[1610280610075,7.41459,1262.8,1259.4,3.88513793]
[1610280610579,7.41459,1262.8,1259.2,3.88573011]
[1610280610774,30.0,1262.7,1259.2,3.88573011]
[1610280611176,30.0,1262.7,1259.0,3.8864182]
[1610280611375,0.26284201,1262.6,1259.0,3.8864182]
[1610280611579,0.37235951,1262.6,1258.8,3.88756571]
[1610280611775,0.81015279,1262.5,1258.7,3.88783523]
[1610280611974,2.89525279,1262.5,1258.7,3.88783523]
[1610280612174,0.80975376,1262.4,1258.5,3.88825739]
[1610280612574,0.80964406,1262.3,1258.5,3.88825739]
[1610280612774,0.37199862,1262.3,1258.5,3.88825739]
[1610280612976,2.241,1262.1,1258.5,3.88825739]
[1610280613175,32.241,1262.1,1258.5,1.6423]
[1610280613375,32.241,1262.1,1259.1,3.40258969]
[1610280613577,32.241,1262.1,1259.1,5.70618969]
[1610280613778,33.0501385,1262.1,1259.1,2.3036]
[1610280614075,3.0501385,1262.1,1259.1,2.3036]
[1610280614281,0.37161504,1261.9,1259.1,2.3036]
[1610280614576,0.80870679,1261.9,1259.1,2.3036]
[1610280614776,0.80870679,1261.9,1259.7,4.00959]
[1610280614977,0.80785405,1261.7,1259.7,4.00959]
[1610280615177,0.80785405,1261.7,1259.7,5.76389]
[1610280615377,0.37113494,1261.6,1259.7,5.76389]
[1610280615578,0.37113494,1261.6,1259.7,1.7543]
[1610280615778,0.37113494,1261.6,1257.2,2.43590307]
[1610280615980,0.80728019,1261.5,1256.3,4.8630726]
[1610280616183,0.37082977,1261.4,1256.3,4.8630726]
[1610280616378,1.97072977,1261.4,1256.3,4.8630726]
[1610280616581,0.37084394,1261.3,1256.3,4.8630726]
[1610280616780,0.26177219,1261.3,1259.9,4.00959]
[1610280616980,1.97086586,1261.4,1259.9,4.00959]
[1610280617182,1.5999,1261.4,1259.9,5.97939]
[1610280618681,4.00959,1260.6,1259.9,5.97939]
[1610280618880,4.00959,1260.6,1259.9,1.9698]
[1610280619883,1.5999,1261.4,1259.9,1.9698]
[1610280620284,2.479,1261.7,1259.9,1.9698]
[1610280620482,8.9124888,1262.1,1259.9,1.9698]
[1610280620685,4.00959,1261.8,1261.4,4.00959]
[1610280621286,0.81109904,1262.5,1261.4,4.00959]
[1610280621485,52.14919371,1262.6,1261.4,6.21699]
[1610280621885,51.3373,1262.6,1261.4,6.21699]
[1610280622684,4.00959,1262.4,1262.1,4.00959]
[1610280622885,4.00959,1262.4,1261.4,2.2074]
[1610280623286,51.3373,1262.6,1261.4,2.2074]
[1610280624686,4.00959,1262.8,1261.4,2.2074]
[1610280624890,42.020324,1263.0,1261.4,2.2074]
[1610280626688,42.020324,1263.0,1262.9,4.00959]
[1610280626888,42.020324,1263.0,1262.9,5.83759]
[1610280627691,42.020324,1263.0,1077.9,1.0]
[1610280627891,42.020324,1263.0,1262.9,2.1492]
[1610280628689,42.020324,1263.0,1262.9,6.15879]
[1610280632796,4.00959,1264.0,1262.9,6.15879]
[1610280633595,3.4762892,1264.9,1262.9,6.15879]
[1610280633996,1.52915898,1264.8,1262.9,6.15879]
[1610280634798,3.47711162,1264.9,1264.5,4.00959]
[1610280635001,1.9483,1264.9,1264.5,4.00959]
[1610280635400,1.53068963,1265.2,1264.5,4.00959]
[1610280635802,1.53259577,1265.6,1264.5,4.00959]
[1610280636001,1.53502665,1265.9,1264.5,4.00959]
[1610280636402,1.53699738,1266.1,1264.5,4.00959]
[1610280636803,1.53699738,1266.1,1264.3,1.7511]
[1610280636804,4.00959,1266.1,1265.2,4.00959]
[1610280638605,4.00959,1266.1,1265.0,2.4626]
[1610280638805,4.00959,1265.1,1265.0,2.4626]
[1610280639411,1.54316382,1266.0,1265.0,2.4626]
[1610280639806,45.33348208,1266.1,1265.0,1.7526]
[1610280640008,43.788924,1266.1,1265.0,1.7526]
[1610280640906,43.788924,1266.1,1266.0,4.00959]
[1610280641707,42.020324,1266.1,1266.0,4.00959]
[1610280644912,42.020324,1266.1,1265.9,1.6418]
[1610280646816,42.020324,1266.1,1266.0,4.00959]
[1610280647018,42.020324,1266.1,1266.0,5.64019]
[1610280649218,31.250424,1266.1,1266.0,5.64019]
[1610280649821,31.250424,1266.1,1266.0,8.54143525]
[1610280650223,31.250424,1266.1,1266.0,5.64019]
[1610280651720,31.250424,1266.1,1263.8,3.60604888]
[1610280651922,31.250424,1266.1,1266.0,2.1295]
[1610280652921,31.250424,1266.1,1266.0,6.13909]
[1610280654122,23.019124,1266.1,1266.0,6.13909]
[1610280654524,15.221224,1266.1,1266.0,6.13909]
[1610280654924,7.497424,1266.1,1266.0,6.13909]
[1610280655527,1.5223,1268.3,1266.0,6.13909]
[1610280656127,2.63897927,1269.8,1266.0,6.13909]
[1610280656328,2.64159583,1270.2,1266.0,6.13909]
[1610280656730,2.64212431,1270.4,1266.0,6.13909]
[1610280656929,4.00959,1270.1,1269.9,4.00959]
[1610280657129,4.00959,1270.1,1268.1,1.8625]
[1610280657332,65.8151,1270.0,1268.1,1.8625]
[1610280657733,30.0,1269.9,1268.1,1.8625]
[1610280658134,32.63366898,1269.9,1266.0,2.1295]
[1610280658335,32.63366898,1269.9,1264.6,5.6433]
[1610280658534,2.63020446,1269.7,1264.6,5.6433]
[1610280658734,4.39770446,1269.7,1264.6,5.6433]
[1610280658935,4.00959,1269.1,1268.4,4.00959]
[1610280659134,4.00959,1269.1,1264.6,5.6433]
[1610280659335,6.19499,1269.1,1264.6,5.6433]
[1610280660936,4.00959,1268.5,1268.1,4.00959]
[1610280661136,4.00959,1268.5,1264.6,5.6433]
[1610280661344,1.8416,1268.5,1264.6,5.6433]
[1610280662139,1.8416,1268.5,1267.2,2.89895888]
[1610280662338,1.8416,1268.5,1267.2,4.44065888]
[1610280662740,2.1854,1269.1,1267.2,4.44065888]
[1610280662938,2.1854,1269.1,1269.0,4.00959]
[1610280663138,4.00959,1269.6,1267.3,2.8985513]
[1610280663338,4.00959,1269.6,1267.4,2.89837053]
[1610280663538,1.7675,1269.7,1267.4,2.89837053]
[1610280663738,1.631,1270.0,1265.7,1.64736737]
[1610280663937,2.64279589,1270.1,1267.4,1.6879]
[1610280664138,30.0,1270.0,1267.4,1.6879]
[1610280664338,32.2873,1270.0,1267.4,1.6879]
[1610280664741,34.93082242,1270.0,1267.4,1.6879]
[1610280664940,4.00959,1269.4,1268.9,4.00959]
[1610280665345,6.14349,1269.4,1268.9,4.00959]
[1610280666140,2.1339,1269.4,1268.9,4.00959]
[1610280666947,2.1339,1269.4,1269.3,4.00959]
[1610280667147,2.2873,1270.0,1269.3,4.00959]
[1610280668141,2.65846351,1271.3,1269.3,4.00959]
[1610280668341,1.81775283,1271.5,1269.3,4.00959]
[1610280668342,4.11441252,1271.5,1269.3,4.00959]
[1610280668543,4.11441252,1271.5,1269.2,1.6204]
[1610280668742,46.6003,1271.0,1269.2,1.6204]
[1610280668942,4.00959,1269.6,1269.2,1.6204]
[1610280669144,4.00959,1269.6,1268.8,6.51169]
[1610280669345,5.69779,1269.6,1268.8,6.51169]
[1610280669544,5.69779,1269.6,1268.8,4.00959]
[1610280670944,4.00959,1269.5,1269.2,4.00959]
[1610280671544,4.00959,1269.5,1266.1,3.0]
[1610280672345,2.2759,1269.9,1266.3,3.0]
[1610280672546,2.2759,1269.9,1266.6,3.0]
[1610280672744,2.2759,1269.9,1266.6,1.5791]
[1610280672946,4.00959,1269.6,1266.6,1.5791]
[1610280673145,4.00959,1269.6,1266.6,4.5791]
[1610280673345,1.6832,1270.2,1267.0,3.0]
[1610280673546,2.66151479,1270.6,1267.2,3.0]
[1610280673747,2.66151479,1270.6,1267.5,3.0]
[1610280673951,3.405,1270.9,1267.9,3.37806849]
[1610280674146,1.8055,1271.0,1268.3,2.89501857]
[1610280674549,2.67143456,1271.4,1268.6,2.89462095]
[1610280674947,4.00959,1270.4,1270.2,4.00959]
[1610280675351,4.00959,1270.4,1268.6,1.6144]
[1610280675750,4.00959,1270.4,1267.1,3.62405767]
[1610280676350,4.00959,1270.4,1267.1,6.62405767]
[1610280676949,4.00959,1270.4,1267.2,5.3422]
[1610280677152,1.6504,1270.9,1267.4,3.0]
[1610280677553,1.6504,1270.9,1267.3,3.0]
[1610280677753,1.6504,1270.9,1267.2,5.3422]
[1610280677954,1.6504,1270.9,1267.2,2.3422]
[1610280678952,4.00959,1270.5,1270.3,4.00959]